[Event "Titled Tuesday Blitz January 03 Late 2023"]
[White "Urbina Perez, Juan Antonio"]
[Black "Guerra Rivera, Salvador"]
[WhiteFideId "2217368"]
[BlackFideId "32096542"]
[WhiteElo "2266"]
[BlackElo "2290"]
[Result "1/2-1/2"]
[Round "07"]
[TimeControl "180+2"]
[Date "2023.01.03"]
[WhiteClock "0:00:10"]
[BlackClock "0:00:18"]

1. e4 {[%clk 0:03:00]}  e5 {[%clk 0:02:57]} 2. Nf3 {[%clk 0:02:57]}  d6 {[%clk 0:02:58]} 3. d4 {[%clk 0:02:56]}  exd4 {[%clk 0:02:45]} 4. Qxd4 {[%clk 0:02:57]}  a6 {[%clk 0:02:45]} 5. Nc3 {[%clk 0:02:53]}  Nc6 {[%clk 0:02:45]} 6. Qd2 {[%clk 0:02:53]}  Nf6 {[%clk 0:02:43]} 7. b3 {[%clk 0:02:53]}  g6 {[%clk 0:02:43]} 8. Bb2 {[%clk 0:02:53]}  Bg7 {[%clk 0:02:44]} 9. O-O-O {[%clk 0:02:50]}  O-O {[%clk 0:02:44]} 10. h4 {[%clk 0:02:49]}  h5 {[%clk 0:02:38]} 11. Ng5 {[%clk 0:02:47]}  Qe7 {[%clk 0:02:33]} 12. f3 {[%clk 0:02:44]}  b5 {[%clk 0:02:31]} 13. Nd5 {[%clk 0:02:34]}  Nxd5 {[%clk 0:02:31]} 14. Bxg7 {[%clk 0:02:33]}  Kxg7 {[%clk 0:02:32]} 15. Qxd5 {[%clk 0:02:31]}  Bd7 {[%clk 0:02:30]} 16. f4 {[%clk 0:02:25]}  Qf6 {[%clk 0:02:09]} 17. g3 {[%clk 0:02:05]}  Nb4 {[%clk 0:02:04]} 18. Qd4 {[%clk 0:01:53]}  Qxd4 {[%clk 0:01:57]} 19. Rxd4 {[%clk 0:01:54]}  a5 {[%clk 0:01:55]} 20. a3 {[%clk 0:01:52]}  Nc6 {[%clk 0:01:54]} 21. Rd2 {[%clk 0:01:52]}  f6 {[%clk 0:01:52]} 22. Nf3 {[%clk 0:01:45]}  Rfe8 {[%clk 0:01:53]} 23. Bd3 {[%clk 0:01:24]}  b4 {[%clk 0:01:48]} 24. a4 {[%clk 0:01:23]}  Bg4 {[%clk 0:01:43]} 25. Rf1 {[%clk 0:01:15]}  Bxf3 {[%clk 0:01:34]} 26. Rxf3 {[%clk 0:01:16]}  Nd4 {[%clk 0:01:34]} 27. Rf1 {[%clk 0:01:13]}  c5 {[%clk 0:01:34]} 28. Rdf2 {[%clk 0:01:02]}  f5 {[%clk 0:01:25]} 29. exf5 {[%clk 0:01:00]}  gxf5 {[%clk 0:01:26]} 30. Kb2 {[%clk 0:00:55]}  Kf6 {[%clk 0:01:26]} 31. Bc4 {[%clk 0:00:50]}  Re3 {[%clk 0:01:24]} 32. Rg1 {[%clk 0:00:46]}  Ra7 {[%clk 0:01:17]} 33. Rfg2 {[%clk 0:00:42]}  Rg7 {[%clk 0:01:15]} 34. Kc1 {[%clk 0:00:35]}  Rc3 {[%clk 0:01:03]} 35. Kb2 {[%clk 0:00:34]}  Rd7 {[%clk 0:00:35]} 36. Bb5 {[%clk 0:00:27]}  Re7 {[%clk 0:00:33]} 37. Bc4 {[%clk 0:00:24]}  Ree3 {[%clk 0:00:33]} 38. Ba6 {[%clk 0:00:20]}  d5 {[%clk 0:00:32]} 39. Bb5 {[%clk 0:00:19]}  Ke7 {[%clk 0:00:28]} 40. Ba6 {[%clk 0:00:17]}  Kd6 {[%clk 0:00:28]} 41. Bb5 {[%clk 0:00:16]}  Nf3 {[%clk 0:00:26]} 42. Rd1 {[%clk 0:00:14]}  Nd4 {[%clk 0:00:23]} 43. Rdg1 {[%clk 0:00:13]}  Kc7 {[%clk 0:00:20]} 44. Ba6 {[%clk 0:00:12]}  Kb6 {[%clk 0:00:20]} 45. Bc8 {[%clk 0:00:11]}  c4 {[%clk 0:00:20]} 46. bxc4 {[%clk 0:00:11]}  dxc4 {[%clk 0:00:21]} 47. Rd1 {[%clk 0:00:08]}  Kc5 {[%clk 0:00:22]} 48. Rgd2 {[%clk 0:00:07]}  Re4 {[%clk 0:00:18]} 49. Bxf5 {[%clk 0:00:08]}  Nxf5 {[%clk 0:00:17]} 50. Rd5+ {[%clk 0:00:08]}  Kc6 {[%clk 0:00:18]} 51. Rxf5 {[%clk 0:00:09]}  Re2 {[%clk 0:00:17]} 52. Rf6+ {[%clk 0:00:09]}  Kc5 {[%clk 0:00:17]} 53. Rf5+ {[%clk 0:00:09]}  Kc6 {[%clk 0:00:17]} 54. Rf6+ {[%clk 0:00:09]}  Kc7 {[%clk 0:00:17]} 55. Rf7+ {[%clk 0:00:10]}  Kc6 {[%clk 0:00:18]} 56. Rf6+ {[%clk 0:00:10]} 1/2-1/2


[Site "https://www.chess.com"]

[Event "Titled Tuesday Blitz January 03 Late 2023"]
[White "Gurevich, Dmitry"]
[Black "Dzierzak, Radoslaw"]
[WhiteFideId "2000407"]
[BlackFideId "1161407"]
[WhiteElo "2393"]
[BlackElo "2220"]
[Result "1-0"]
[Round "07"]
[TimeControl "180+2"]
[Date "2023.01.03"]
[WhiteClock "0:00:13"]
[BlackClock "0:00:01"]

1. d4 {[%clk 0:02:55]}  Nf6 {[%clk 0:02:59]} 2. c4 {[%clk 0:02:53]}  e6 {[%clk 0:03:00]} 3. Nc3 {[%clk 0:02:52]}  Bb4 {[%clk 0:03:00]} 4. a3 {[%clk 0:02:52]}  Bxc3+ {[%clk 0:03:00]} 5. bxc3 {[%clk 0:02:53]}  b6 {[%clk 0:03:00]} 6. e3 {[%clk 0:02:50]}  Bb7 {[%clk 0:03:00]} 7. f3 {[%clk 0:02:50]}  Nc6 {[%clk 0:02:58]} 8. Bd3 {[%clk 0:02:50]}  Ba6 {[%clk 0:02:57]} 9. Rb1 {[%clk 0:02:47]}  Na5 {[%clk 0:02:57]} 10. Qe2 {[%clk 0:02:46]}  c5 {[%clk 0:02:40]} 11. d5 {[%clk 0:02:41]}  d6 {[%clk 0:02:22]} 12. e4 {[%clk 0:02:36]}  e5 {[%clk 0:02:15]} 13. Nh3 {[%clk 0:02:32]}  h6 {[%clk 0:02:14]} 14. O-O {[%clk 0:02:30]}  g5 {[%clk 0:02:08]} 15. g3 {[%clk 0:02:15]}  Qd7 {[%clk 0:02:06]} 16. Kg2 {[%clk 0:02:14]}  Rg8 {[%clk 0:02:02]} 17. Nf2 {[%clk 0:01:59]}  Qa4 {[%clk 0:01:47]} 18. Rb5 {[%clk 0:01:55]}  Bxb5 {[%clk 0:01:37]} 19. cxb5 {[%clk 0:01:55]}  c4 {[%clk 0:01:38]} 20. Bc2 {[%clk 0:01:54]}  Nb3 {[%clk 0:01:38]} 21. Be3 {[%clk 0:01:41]}  Qxb5 {[%clk 0:01:14]} 22. Rb1 {[%clk 0:01:40]}  Qa4 {[%clk 0:01:04]} 23. Bxb3 {[%clk 0:01:39]}  cxb3 {[%clk 0:01:03]} 24. Qb2 {[%clk 0:01:39]}  Rc8 {[%clk 0:00:56]} 25. Qxb3 {[%clk 0:01:37]}  Qxb3 {[%clk 0:00:56]} 26. Rxb3 {[%clk 0:01:37]}  Kd7 {[%clk 0:00:52]} 27. g4 {[%clk 0:01:33]}  Rc4 {[%clk 0:00:50]} 28. Nd3 {[%clk 0:01:31]}  Rgc8 {[%clk 0:00:48]} 29. Bd2 {[%clk 0:01:31]}  Ke7 {[%clk 0:00:44]} 30. Nb2 {[%clk 0:01:27]}  R4c5 {[%clk 0:00:38]} 31. c4 {[%clk 0:01:25]}  Nd7 {[%clk 0:00:35]} 32. a4 {[%clk 0:01:19]}  Rxc4 {[%clk 0:00:27]} 33. Nxc4 {[%clk 0:01:18]}  Rxc4 {[%clk 0:00:28]} 34. Kg3 {[%clk 0:01:10]}  Rxa4 {[%clk 0:00:27]} 35. h4 {[%clk 0:01:09]}  f6 {[%clk 0:00:27]} 36. hxg5 {[%clk 0:01:08]}  hxg5 {[%clk 0:00:27]} 37. Rb1 {[%clk 0:01:04]}  Kf7 {[%clk 0:00:23]} 38. Rh1 {[%clk 0:00:53]}  Kg7 {[%clk 0:00:23]} 39. Rc1 {[%clk 0:00:51]}  Nc5 {[%clk 0:00:22]} 40. Be3 {[%clk 0:00:51]}  Ra3 {[%clk 0:00:12]} 41. Bxc5 {[%clk 0:00:48]}  bxc5 {[%clk 0:00:10]} 42. Rb1 {[%clk 0:00:47]}  Ra6 {[%clk 0:00:10]} 43. Rb7+ {[%clk 0:00:46]}  Kg6 {[%clk 0:00:11]} 44. Rc7 {[%clk 0:00:44]}  c4 {[%clk 0:00:03]} 45. Rxc4 {[%clk 0:00:43]}  Rb6 {[%clk 0:00:03]} 46. Rc7 {[%clk 0:00:41]}  a5 {[%clk 0:00:03]} 47. Rc6 {[%clk 0:00:39]}  Rb7 {[%clk 0:00:01]} 48. Ra6 {[%clk 0:00:37]}  Rd7 {[%clk 0:00:01]} 49. Rxa5 {[%clk 0:00:36]}  Kf7 {[%clk 0:00:02]} 50. Ra8 {[%clk 0:00:36]}  Ke7 {[%clk 0:00:02]} 51. Rh8 {[%clk 0:00:35]}  Rd8 {[%clk 0:00:01]} 52. Rh7+ {[%clk 0:00:35]}  Ke8 {[%clk 0:00:01]} 53. Rc7 {[%clk 0:00:33]}  Rd7 {[%clk 0:00:02]} 54. Rc8+ {[%clk 0:00:33]}  Ke7 {[%clk 0:00:01]} 55. Rh8 {[%clk 0:00:32]}  Rc7 {[%clk 0:00:02]} 56. Rh7+ {[%clk 0:00:26]}  Kd8 {[%clk 0:00:02]} 57. Rh6 {[%clk 0:00:26]}  Ke7 {[%clk 0:00:02]} 58. Rh7+ {[%clk 0:00:23]}  Kd8 {[%clk 0:00:02]} 59. Rh8+ {[%clk 0:00:23]}  Ke7 {[%clk 0:00:03]} 60. Kf2 {[%clk 0:00:24]}  Rc3 {[%clk 0:00:03]} 61. Ke2 {[%clk 0:00:23]}  Ra3 {[%clk 0:00:02]} 62. Rh7+ {[%clk 0:00:22]}  Ke8 {[%clk 0:00:02]} 63. Rg7 {[%clk 0:00:21]}  Ra2+ {[%clk 0:00:02]} 64. Kd3 {[%clk 0:00:20]}  Rf2 {[%clk 0:00:02]} 65. Kc4 {[%clk 0:00:19]}  Rxf3 {[%clk 0:00:02]} 66. Kb5 {[%clk 0:00:19]}  Rf4 {[%clk 0:00:01]} 67. Kc6 {[%clk 0:00:19]}  Rxe4 {[%clk 0:00:02]} 68. Kxd6 {[%clk 0:00:19]}  Rxg4 {[%clk 0:00:01]} 69. Ke6 {[%clk 0:00:19]}  Kf8 {[%clk 0:00:01]} 70. Rf7+ {[%clk 0:00:18]}  Kg8 {[%clk 0:00:01]} 71. d6 {[%clk 0:00:17]}  Rd4 {[%clk 0:00:01]} 72. Rxf6 {[%clk 0:00:13]} 1-0


[Site "https://www.chess.com"]

[Event "Titled Tuesday Blitz January 03 Late 2023"]
[White "Gomes, Luiz Alexandre de Souza"]
[Black "gshwbedhkhd"]
[WhiteFideId "2102790"]
[WhiteElo "2254"]
[BlackElo "2511"]
[Result "0-1"]
[Round "07"]
[TimeControl "180+2"]
[Date "2023.01.03"]
[WhiteClock "0:00:13"]
[BlackClock "0:00:52"]

1. e4 {[%clk 0:03:00]}  c5 {[%clk 0:02:59]} 2. Nf3 {[%clk 0:03:00]}  e6 {[%clk 0:02:58]} 3. d4 {[%clk 0:03:00]}  cxd4 {[%clk 0:02:59]} 4. Nxd4 {[%clk 0:03:00]}  Nf6 {[%clk 0:03:00]} 5. Nc3 {[%clk 0:03:00]}  Nc6 {[%clk 0:03:00]} 6. Nxc6 {[%clk 0:03:00]}  bxc6 {[%clk 0:03:01]} 7. Bd3 {[%clk 0:03:00]}  d5 {[%clk 0:03:00]} 8. O-O {[%clk 0:03:01]}  Be7 {[%clk 0:03:00]} 9. Qf3 {[%clk 0:03:01]}  O-O {[%clk 0:02:58]} 10. Rd1 {[%clk 0:03:00]}  Rb8 {[%clk 0:02:48]} 11. b3 {[%clk 0:02:59]}  Nd7 {[%clk 0:02:43]} 12. Bf4 {[%clk 0:02:54]}  Rb6 {[%clk 0:02:32]} 13. exd5 {[%clk 0:02:54]}  cxd5 {[%clk 0:02:30]} 14. Na4 {[%clk 0:02:44]}  Rb4 {[%clk 0:02:07]} 15. c4 {[%clk 0:02:42]}  Bb7 {[%clk 0:02:03]} 16. Qh3 {[%clk 0:02:32]}  g6 {[%clk 0:02:00]} 17. Rac1 {[%clk 0:02:14]}  Bc6 {[%clk 0:01:41]} 18. Nc3 {[%clk 0:02:11]}  d4 {[%clk 0:01:38]} 19. Ne4 {[%clk 0:02:10]}  e5 {[%clk 0:01:36]} 20. Bh6 {[%clk 0:02:09]}  f5 {[%clk 0:01:31]} 21. Bxf8 {[%clk 0:02:05]}  Qxf8 {[%clk 0:01:32]} 22. Nd2 {[%clk 0:01:47]}  e4 {[%clk 0:01:31]} 23. Bf1 {[%clk 0:01:47]}  d3 {[%clk 0:01:28]} 24. Nb1 {[%clk 0:01:24]}  Rb8 {[%clk 0:01:25]} 25. Nc3 {[%clk 0:01:24]}  Ba3 {[%clk 0:01:21]} 26. Rb1 {[%clk 0:01:22]}  Ne5 {[%clk 0:01:19]} 27. Nd5 {[%clk 0:01:20]}  Bxd5 {[%clk 0:01:17]} 28. cxd5 {[%clk 0:01:21]}  Bc5 {[%clk 0:01:16]} 29. Rbc1 {[%clk 0:01:13]}  Ng4 {[%clk 0:01:12]} 30. Rxc5 {[%clk 0:00:49]}  Qxc5 {[%clk 0:01:10]} 31. Qg3 {[%clk 0:00:49]}  Rd8 {[%clk 0:01:08]} 32. h3 {[%clk 0:00:49]}  Nxf2 {[%clk 0:01:03]} 33. Qxf2 {[%clk 0:00:40]}  e3 {[%clk 0:00:56]} 34. Qh4 {[%clk 0:00:37]}  e2+ {[%clk 0:00:55]} 35. Kh2 {[%clk 0:00:13]}  Qd6+ {[%clk 0:00:52]} 0-1


[Site "https://www.chess.com"]

[Event "Titled Tuesday Blitz January 03 Late 2023"]
[White "Corredor Castellanos, Camilo"]
[Black "Goncalves, Davi Sulzbacher"]
[WhiteFideId "4425871"]
[BlackFideId "2154510"]
[WhiteElo "1957"]
[BlackElo "2282"]
[Result "0-1"]
[Round "07"]
[TimeControl "180+2"]
[Date "2023.01.03"]
[WhiteClock "0:02:01"]
[BlackClock "0:01:32"]

1. e4 {[%clk 0:03:00]}  c5 {[%clk 0:02:59]} 2. Nf3 {[%clk 0:03:00]}  d6 {[%clk 0:03:00]} 3. d4 {[%clk 0:03:01]}  cxd4 {[%clk 0:03:01]} 4. Nxd4 {[%clk 0:03:01]}  Nf6 {[%clk 0:03:02]} 5. Nc3 {[%clk 0:03:00]}  a6 {[%clk 0:03:02]} 6. h4 {[%clk 0:02:59]}  e5 {[%clk 0:03:02]} 7. Nb3 {[%clk 0:02:58]}  Be7 {[%clk 0:03:02]} 8. Bg5 {[%clk 0:02:57]}  Nbd7 {[%clk 0:03:00]} 9. Qd2 {[%clk 0:02:49]}  h6 {[%clk 0:02:58]} 10. Bxf6 {[%clk 0:02:47]}  Nxf6 {[%clk 0:02:58]} 11. a4 {[%clk 0:02:47]}  Be6 {[%clk 0:02:57]} 12. Nd5 {[%clk 0:02:46]}  Nxe4 {[%clk 0:02:54]} 13. Qd3 {[%clk 0:02:41]}  Nf6 {[%clk 0:02:51]} 14. Nxe7 {[%clk 0:02:37]}  Qxe7 {[%clk 0:02:50]} 15. O-O-O {[%clk 0:02:38]}  Rc8 {[%clk 0:02:43]} 16. Kb1 {[%clk 0:02:36]}  Qc7 {[%clk 0:02:34]} 17. f3 {[%clk 0:02:28]}  O-O {[%clk 0:02:32]} 18. g4 {[%clk 0:02:27]}  Nd5 {[%clk 0:02:33]} 19. Na1 {[%clk 0:02:09]}  Nb4 {[%clk 0:02:28]} 20. Qd2 {[%clk 0:02:09]}  a5 {[%clk 0:01:41]} 21. h5 {[%clk 0:02:07]}  Qc6 {[%clk 0:01:37]} 22. Bg2 {[%clk 0:02:01]}  Qxa4 {[%clk 0:01:32]} 0-1


[Site "https://www.chess.com"]

[Event "Titled Tuesday Blitz January 03 Late 2023"]
[White "Sloan, Julia Elizabeth"]
[Black "Vega Gutierrez, Sabrina"]
[WhiteFideId "2018950"]
[BlackFideId "2219026"]
[WhiteElo "2087"]
[BlackElo "2377"]
[Result "0-1"]
[Round "07"]
[TimeControl "180+2"]
[Date "2023.01.03"]
[WhiteClock "0:01:40"]
[BlackClock "0:01:15"]

1. d4 {[%clk 0:03:00]}  d5 {[%clk 0:02:59]} 2. c4 {[%clk 0:02:59]}  e6 {[%clk 0:02:59]} 3. Nc3 {[%clk 0:02:59]}  c6 {[%clk 0:02:59]} 4. e3 {[%clk 0:02:58]}  f5 {[%clk 0:02:59]} 5. Nf3 {[%clk 0:02:57]}  Nf6 {[%clk 0:02:59]} 6. Bd3 {[%clk 0:02:57]}  Bd6 {[%clk 0:02:59]} 7. O-O {[%clk 0:02:56]}  O-O {[%clk 0:03:00]} 8. Bd2 {[%clk 0:02:55]}  Nbd7 {[%clk 0:02:57]} 9. a3 {[%clk 0:02:54]}  Ne4 {[%clk 0:02:53]} 10. Ne1 {[%clk 0:02:51]}  Rf6 {[%clk 0:02:36]} 11. f4 {[%clk 0:02:50]}  b6 {[%clk 0:02:24]} 12. Nf3 {[%clk 0:02:08]}  Bb7 {[%clk 0:02:24]} 13. Ne5 {[%clk 0:02:07]}  Rc8 {[%clk 0:02:14]} 14. Bxe4 {[%clk 0:02:06]}  dxe4 {[%clk 0:02:10]} 15. Be1 {[%clk 0:02:05]}  Rh6 {[%clk 0:02:09]} 16. g4 {[%clk 0:01:59]}  Bxe5 {[%clk 0:01:37]} 17. dxe5 {[%clk 0:01:58]}  Nc5 {[%clk 0:01:31]} 18. g5 {[%clk 0:01:56]}  Rh3 {[%clk 0:01:27]} 19. Bg3 {[%clk 0:01:45]}  Qe8 {[%clk 0:01:17]} 20. Qd6 {[%clk 0:01:43]}  Rd8 {[%clk 0:01:16]} 21. Qc7 {[%clk 0:01:40]}  Rd7 {[%clk 0:01:15]} 0-1


[Site "https://www.chess.com"]

[Event "Titled Tuesday Blitz January 03 Late 2023"]
[White "Horcajuelo Rocamora, Martin"]
[Black "Eisa Mohmood, Alkhoori"]
[WhiteFideId "24573027"]
[BlackFideId "9316116"]
[WhiteElo "2107"]
[BlackElo "1095"]
[Result "1-0"]
[Round "07"]
[TimeControl "180+2"]
[Date "2023.01.03"]
[WhiteClock "0:00:27"]
[BlackClock "0:00:13"]

1. e4 {[%clk 0:03:00]}  c5 {[%clk 0:02:59]} 2. Nf3 {[%clk 0:03:01]}  d6 {[%clk 0:03:00]} 3. d4 {[%clk 0:03:01]}  cxd4 {[%clk 0:03:01]} 4. Nxd4 {[%clk 0:03:02]}  Nf6 {[%clk 0:03:01]} 5. Nc3 {[%clk 0:03:03]}  g6 {[%clk 0:03:02]} 6. Be3 {[%clk 0:03:03]}  Bg7 {[%clk 0:03:03]} 7. f3 {[%clk 0:03:03]}  O-O {[%clk 0:03:04]} 8. Qd2 {[%clk 0:03:04]}  Nc6 {[%clk 0:03:04]} 9. O-O-O {[%clk 0:03:05]}  d5 {[%clk 0:03:05]} 10. Nxc6 {[%clk 0:02:42]}  bxc6 {[%clk 0:03:06]} 11. exd5 {[%clk 0:02:39]}  Nxd5 {[%clk 0:03:06]} 12. Bd4 {[%clk 0:02:35]}  e5 {[%clk 0:03:06]} 13. Bc5 {[%clk 0:02:34]}  Be6 {[%clk 0:03:06]} 14. Ne4 {[%clk 0:02:27]}  Re8 {[%clk 0:03:06]} 15. c4 {[%clk 0:02:22]}  Nf4 {[%clk 0:02:43]} 16. Qxd8 {[%clk 0:02:11]}  Rexd8 {[%clk 0:02:43]} 17. g3 {[%clk 0:02:12]}  Rxd1+ {[%clk 0:02:23]} 18. Kxd1 {[%clk 0:02:12]}  Rd8+ {[%clk 0:02:24]} 19. Kc2 {[%clk 0:02:11]}  Nh5 {[%clk 0:02:20]} 20. Be2 {[%clk 0:02:10]}  Bh6 {[%clk 0:02:14]} 21. Bxa7 {[%clk 0:02:00]}  f5 {[%clk 0:02:07]} 22. Nc5 {[%clk 0:01:49]}  Rd2+ {[%clk 0:01:48]} 23. Kc3 {[%clk 0:01:49]}  Bc8 {[%clk 0:01:41]} 24. Bd1 {[%clk 0:01:43]}  Rg2 {[%clk 0:01:35]} 25. Nd3 {[%clk 0:01:30]}  Bd2+ {[%clk 0:01:33]} 26. Kb3 {[%clk 0:01:31]}  e4 {[%clk 0:01:33]} 27. fxe4 {[%clk 0:01:26]}  fxe4 {[%clk 0:01:34]} 28. Ne1 {[%clk 0:01:11]}  Bxe1 {[%clk 0:01:29]} 29. Rxe1 {[%clk 0:01:12]}  Nf6 {[%clk 0:01:11]} 30. Bd4 {[%clk 0:01:10]}  Kf7 {[%clk 0:01:06]} 31. Bxf6 {[%clk 0:01:01]}  Kxf6 {[%clk 0:01:06]} 32. Rxe4 {[%clk 0:01:01]}  Rxh2 {[%clk 0:01:07]} 33. Bf3 {[%clk 0:00:57]}  Rh3 {[%clk 0:01:03]} 34. Rf4+ {[%clk 0:00:51]}  Ke7 {[%clk 0:00:56]} 35. Bxc6 {[%clk 0:00:48]}  Rxg3+ {[%clk 0:00:56]} 36. Kb4 {[%clk 0:00:47]}  g5 {[%clk 0:00:50]} 37. Re4+ {[%clk 0:00:45]}  Kd6 {[%clk 0:00:50]} 38. Bd5 {[%clk 0:00:44]}  h5 {[%clk 0:00:39]} 39. Re8 {[%clk 0:00:39]}  Bd7 {[%clk 0:00:38]} 40. Rh8 {[%clk 0:00:39]}  h4 {[%clk 0:00:37]} 41. Rh6+ {[%clk 0:00:34]}  Kc7 {[%clk 0:00:37]} 42. Kc5 {[%clk 0:00:34]}  h3 {[%clk 0:00:30]} 43. Rh7 {[%clk 0:00:34]}  g4 {[%clk 0:00:24]} 44. Be6 {[%clk 0:00:33]}  Rd3 {[%clk 0:00:21]} 45. Bxg4 {[%clk 0:00:31]}  h2 {[%clk 0:00:21]} 46. Bxd7 {[%clk 0:00:30]}  h1=Q {[%clk 0:00:20]} 47. Rxh1 {[%clk 0:00:28]}  Rxd7 {[%clk 0:00:18]} 48. b4 {[%clk 0:00:28]}  Kb7 {[%clk 0:00:18]} 49. b5 {[%clk 0:00:28]}  Ka7 {[%clk 0:00:17]} 50. a4 {[%clk 0:00:27]}  Rb7 {[%clk 0:00:14]} 51. a5 {[%clk 0:00:27]}  Rb8 {[%clk 0:00:15]} 52. Rh7+ {[%clk 0:00:26]}  Ka8 {[%clk 0:00:15]} 53. Kb4 {[%clk 0:00:26]}  Rc8 {[%clk 0:00:15]} 54. c5 {[%clk 0:00:26]}  Rb8 {[%clk 0:00:15]} 55. b6 {[%clk 0:00:26]}  Rb7 {[%clk 0:00:12]} 56. Rxb7 {[%clk 0:00:24]}  Kxb7 {[%clk 0:00:12]} 57. Kb5 {[%clk 0:00:24]}  Ka8 {[%clk 0:00:11]} 58. Ka6 {[%clk 0:00:24]}  Kb8 {[%clk 0:00:11]} 59. b7 {[%clk 0:00:24]}  Kc7 {[%clk 0:00:12]} 60. Ka7 {[%clk 0:00:25]}  Kd7 {[%clk 0:00:11]} 61. b8=Q {[%clk 0:00:26]}  Kc6 {[%clk 0:00:12]} 62. Qb6+ {[%clk 0:00:25]}  Kd7 {[%clk 0:00:12]} 63. c6+ {[%clk 0:00:26]}  Kc8 {[%clk 0:00:12]} 64. Qb7+ {[%clk 0:00:26]}  Kd8 {[%clk 0:00:13]} 65. Qd7# {[%clk 0:00:27]} 1-0


[Site "https://www.chess.com"]

[Event "Titled Tuesday Blitz January 03 Late 2023"]
[White "Weetik, Vjacheslav"]
[Black "Mitrovic, Darko R"]
[WhiteFideId "4153472"]
[BlackFideId "927023"]
[WhiteElo "2423"]
[BlackElo "2220"]
[Result "1-0"]
[Round "07"]
[TimeControl "180+2"]
[Date "2023.01.03"]
[WhiteClock "0:00:24"]
[BlackClock "0:00:01"]

1. d4 {[%clk 0:02:59]}  Nf6 {[%clk 0:02:59]} 2. Nf3 {[%clk 0:02:59]}  b5 {[%clk 0:02:58]} 3. Bg5 {[%clk 0:02:57]}  h6 {[%clk 0:02:53]} 4. Bxf6 {[%clk 0:02:56]}  exf6 {[%clk 0:02:53]} 5. e4 {[%clk 0:02:56]}  a6 {[%clk 0:02:49]} 6. a4 {[%clk 0:02:55]}  Bb7 {[%clk 0:02:12]} 7. Nbd2 {[%clk 0:02:47]}  b4 {[%clk 0:02:03]} 8. Bc4 {[%clk 0:02:44]}  Be7 {[%clk 0:01:59]} 9. O-O {[%clk 0:02:41]}  O-O {[%clk 0:01:59]} 10. Re1 {[%clk 0:02:42]}  a5 {[%clk 0:01:57]} 11. Nh4 {[%clk 0:02:41]}  Ba6 {[%clk 0:01:41]} 12. Bb3 {[%clk 0:02:34]}  Nc6 {[%clk 0:01:33]} 13. c3 {[%clk 0:02:30]}  Kh7 {[%clk 0:01:27]} 14. Qg4 {[%clk 0:02:27]}  bxc3 {[%clk 0:01:08]} 15. bxc3 {[%clk 0:02:25]}  Rb8 {[%clk 0:01:06]} 16. Rab1 {[%clk 0:02:16]}  Bd3 {[%clk 0:01:03]} 17. Rbc1 {[%clk 0:02:11]}  Ba3 {[%clk 0:00:55]} 18. Rcd1 {[%clk 0:02:09]}  Rxb3 {[%clk 0:00:51]} 19. Nxb3 {[%clk 0:02:09]}  Bc2 {[%clk 0:00:51]} 20. Ra1 {[%clk 0:02:06]}  Bb2 {[%clk 0:00:41]} 21. Ra2 {[%clk 0:02:04]}  Bxc3 {[%clk 0:00:40]} 22. Rxc2 {[%clk 0:01:54]}  Bxe1 {[%clk 0:00:39]} 23. Nf5 {[%clk 0:01:39]}  g6 {[%clk 0:00:38]} 24. Ne3 {[%clk 0:01:38]}  Bb4 {[%clk 0:00:33]} 25. h4 {[%clk 0:01:38]}  h5 {[%clk 0:00:29]} 26. Qf3 {[%clk 0:01:38]}  Qe7 {[%clk 0:00:25]} 27. Nd5 {[%clk 0:01:38]}  Qd6 {[%clk 0:00:16]} 28. Nxf6+ {[%clk 0:01:38]}  Kg7 {[%clk 0:00:16]} 29. Nd5 {[%clk 0:01:25]}  Ne7 {[%clk 0:00:11]} 30. Nxc7 {[%clk 0:01:12]}  Rc8 {[%clk 0:00:10]} 31. Nb5 {[%clk 0:01:11]}  Qf6 {[%clk 0:00:08]} 32. Qxf6+ {[%clk 0:00:41]}  Kxf6 {[%clk 0:00:07]} 33. Nc5 {[%clk 0:00:25]}  Nc6 {[%clk 0:00:01]} 34. Nxd7+ {[%clk 0:00:24]}  Ke7 {[%clk 0:00:01]} 35. Nb6 {[%clk 0:00:24]} 1-0


[Site "https://www.chess.com"]

[Event "Titled Tuesday Blitz January 03 Late 2023"]
[White "Dinu, Dumitru-Daniel"]
[Black "Pinheiro, Iung Alicio de O."]
[WhiteFideId "1208403"]
[BlackFideId "2104350"]
[WhiteElo "2203"]
[BlackElo "2306"]
[Result "0-1"]
[Round "07"]
[TimeControl "180+2"]
[Date "2023.01.03"]
[WhiteClock "0:00:17"]
[BlackClock "0:00:07"]

1. e4 {[%clk 0:03:00]}  c5 {[%clk 0:02:55]} 2. Be2 {[%clk 0:03:00]}  d5 {[%clk 0:02:53]} 3. d3 {[%clk 0:02:58]}  Nc6 {[%clk 0:02:50]} 4. f4 {[%clk 0:02:57]}  dxe4 {[%clk 0:02:42]} 5. dxe4 {[%clk 0:02:57]}  Qxd1+ {[%clk 0:02:43]} 6. Bxd1 {[%clk 0:02:56]}  e5 {[%clk 0:02:42]} 7. Nf3 {[%clk 0:02:55]}  Bd6 {[%clk 0:02:22]} 8. O-O {[%clk 0:02:55]}  Nf6 {[%clk 0:02:14]} 9. Nc3 {[%clk 0:02:49]}  O-O {[%clk 0:02:11]} 10. Nd5 {[%clk 0:02:42]}  Nxe4 {[%clk 0:02:05]} 11. fxe5 {[%clk 0:02:37]}  Nxe5 {[%clk 0:01:59]} 12. Nxe5 {[%clk 0:02:35]}  Bxe5 {[%clk 0:01:59]} 13. Bf3 {[%clk 0:02:01]}  Bd4+ {[%clk 0:01:31]} 14. Be3 {[%clk 0:01:42]}  Bxe3+ {[%clk 0:01:24]} 15. Nxe3 {[%clk 0:01:42]}  Nd2 {[%clk 0:01:24]} 16. Rfd1 {[%clk 0:01:39]}  Nxf3+ {[%clk 0:01:24]} 17. gxf3 {[%clk 0:01:39]}  Be6 {[%clk 0:01:25]} 18. Rd6 {[%clk 0:01:38]}  Rfd8 {[%clk 0:01:22]} 19. Rad1 {[%clk 0:01:39]}  Rxd6 {[%clk 0:01:22]} 20. Rxd6 {[%clk 0:01:39]}  Kf8 {[%clk 0:01:23]} 21. f4 {[%clk 0:01:37]}  Ke7 {[%clk 0:01:22]} 22. Rd3 {[%clk 0:01:35]}  g6 {[%clk 0:01:15]} 23. Rc3 {[%clk 0:01:26]}  b6 {[%clk 0:01:14]} 24. Ra3 {[%clk 0:01:26]}  a5 {[%clk 0:01:06]} 25. c4 {[%clk 0:01:22]}  Rd8 {[%clk 0:00:56]} 26. Rb3 {[%clk 0:01:21]}  Rd6 {[%clk 0:00:56]} 27. Kf1 {[%clk 0:01:19]}  Kd7 {[%clk 0:00:50]} 28. Ke2 {[%clk 0:01:18]}  Kc6 {[%clk 0:00:48]} 29. Rc3 {[%clk 0:01:12]}  Rd4 {[%clk 0:00:47]} 30. Kf3 {[%clk 0:01:11]}  Rd2 {[%clk 0:00:31]} 31. Rb3 {[%clk 0:01:00]}  Rd4 {[%clk 0:00:18]} 32. Rc3 {[%clk 0:00:59]}  a4 {[%clk 0:00:17]} 33. h4 {[%clk 0:00:55]}  Rd2 {[%clk 0:00:17]} 34. Nc2 {[%clk 0:00:42]}  h5 {[%clk 0:00:14]} 35. b3 {[%clk 0:00:39]}  Bf5 {[%clk 0:00:13]} 36. Ne3 {[%clk 0:00:36]}  Rxa2 {[%clk 0:00:13]} 37. bxa4 {[%clk 0:00:36]}  Rxa4 {[%clk 0:00:13]} 38. Rc1 {[%clk 0:00:33]}  Be6 {[%clk 0:00:12]} 39. Rc3 {[%clk 0:00:31]}  Rb4 {[%clk 0:00:11]} 40. Ke4 {[%clk 0:00:31]}  b5 {[%clk 0:00:11]} 41. Ke5 {[%clk 0:00:31]}  Bxc4 {[%clk 0:00:11]} 42. Rc1 {[%clk 0:00:29]}  Be6 {[%clk 0:00:11]} 43. Rd1 {[%clk 0:00:29]}  Rb3 {[%clk 0:00:10]} 44. Re1 {[%clk 0:00:22]}  Rd3 {[%clk 0:00:09]} 45. Nc2 {[%clk 0:00:19]}  b4 {[%clk 0:00:08]} 46. Rc1 {[%clk 0:00:18]}  Rc3 {[%clk 0:00:09]} 47. Ke4 {[%clk 0:00:17]}  Rxc2 {[%clk 0:00:07]} 0-1


[Site "https://www.chess.com"]